[Event "Championnat d'Europe de Blitz"]
[Date "2024.12.09"]
[White "Djukic, Nikola"]
[Black "Larkin, Vladyslav"]
[WhiteElo "2493"]
[BlackElo "2449"]
[Round "8.18"]
[Result "1-0"]
[TimeControl "180+2"]

1. e4 {[%emt 00:00:01] [%clk 00:03:02]} d6 {[%emt 00:00:01] [%clk 00:03:04]} 2.
d4 {[%emt 00:00:02] [%clk 00:03:02]} Nf6 {[%emt 00:00:01] [%clk 00:03:05]} 3.
Nc3 {[%clk 00:03:03]} c6 {[%emt 00:00:01] [%clk 00:03:06]} 4. a4 {[%emt
00:00:06] [%clk 00:02:59]} Nbd7 {[%emt 00:00:06] [%clk 00:03:02]} 5. Nf3 {[%emt
00:00:02] [%clk 00:02:59]} e5 {[%emt 00:00:02] [%clk 00:03:03]} 6. Bc4 {[%emt
00:00:04] [%clk 00:02:56]} Be7 {[%clk 00:03:03]} 7. O-O {[%emt 00:00:02] [%clk
00:02:56]} h6 {[%emt 00:00:03] [%clk 00:03:03]} 8. Re1 {[%emt 00:00:06] [%clk
00:02:52]} Qc7 {[%emt 00:00:01] [%clk 00:03:04]} 9. b3 {[%emt 00:00:14] [%clk
00:02:40]} g5 {[%emt 00:00:19] [%clk 00:02:46]} 10. Bb2 {[%emt 00:00:11] [%clk
00:02:31]} Nf8 {[%emt 00:00:02] [%clk 00:02:46]} 11. dxe5 {[%emt 00:00:42] [%clk
00:01:51]} dxe5 {[%emt 00:00:02] [%clk 00:02:47]} 12. Nd5 {[%clk 00:01:52]} cxd5
{[%emt 00:00:26] [%clk 00:02:22]} 13. Bxe5 {[%emt 00:00:02] [%clk 00:01:53]} Qb6
{[%emt 00:01:04] [%clk 00:01:21]} 14. exd5 {[%emt 00:00:02] [%clk 00:01:52]} Bg4
{[%emt 00:00:28] [%clk 00:00:54]} 15. d6 {[%emt 00:00:06] [%clk 00:01:49]} O-O-O
{[%emt 00:00:08] [%clk 00:00:48]} 16. dxe7 {[%emt 00:00:55] [%clk 00:00:56]}
Rxd1 {[%emt 00:00:01] [%clk 00:00:49]} 17. Bxf6 {[%emt 00:00:12] [%clk
00:00:46]} Rxe1+ {[%clk 00:00:49]} 18. Rxe1 {[%emt 00:00:01] [%clk 00:00:47]}
Bd7 {[%emt 00:00:07] [%clk 00:00:45]} 19. e8=Q+ {[%emt 00:00:15] [%clk
00:00:34]} Bxe8 {[%emt 00:00:01] [%clk 00:00:46]} 20. Rxe8+ {[%emt 00:00:02]
[%clk 00:00:35]} Kd7 {[%emt 00:00:12] [%clk 00:00:36]} 21. Bb5+ {[%clk
00:00:35]} Kd6 {[%emt 00:00:33] [%clk 00:00:05]} 22. Be5+ {[%emt 00:00:04] [%clk
00:00:33]} Kc5 {[%emt 00:00:03] [%clk 00:00:04]} 23. Bd4+ {[%emt 00:00:02] [%clk
00:00:34]} Kb4 {[%clk 00:00:05]} 24. Bxb6 {[%emt 00:00:04] [%clk 00:00:32]} axb6
{[%clk 00:00:06]} 25. Ne5 {[%emt 00:00:09] [%clk 00:00:25]} 1-0

[Site "Europe Echecs"]

[Event "Championnat d'Europe de Blitz"]
[Date "2024.12.09"]
[White "Smeets, Jan"]
[Black "Hamitevici, Vladimir"]
[WhiteElo "2552"]
[BlackElo "2423"]
[Round "8.19"]
[Result "0-1"]
[TimeControl "180+2"]

1. e4 {[%clk 00:03:03]} c5 {[%emt 00:00:08] [%clk 00:02:57]} 2. Nf3 {[%emt
00:00:01] [%clk 00:03:04]} d6 {[%clk 00:02:58]} 3. Bb5+ {[%emt 00:00:02] [%clk
00:03:04]} Nd7 {[%emt 00:00:01] [%clk 00:02:58]} 4. a4 {[%emt 00:00:05] [%clk
00:03:02]} Ngf6 {[%emt 00:00:06] [%clk 00:02:54]} 5. Nc3 {[%emt 00:00:02] [%clk
00:03:02]} a6 {[%clk 00:02:55]} 6. Be2 {[%clk 00:03:03]} b6 {[%emt 00:00:10]
[%clk 00:02:47]} 7. d4 {[%emt 00:00:02] [%clk 00:03:04]} cxd4 {[%emt 00:00:02]
[%clk 00:02:47]} 8. Qxd4 {[%emt 00:00:01] [%clk 00:03:04]} e5 {[%emt 00:00:09]
[%clk 00:02:40]} 9. Qc4 {[%emt 00:00:30] [%clk 00:02:37]} Be7 {[%emt 00:00:24]
[%clk 00:02:18]} 10. Be3 {[%emt 00:00:29] [%clk 00:02:09]} Bb7 {[%emt 00:00:08]
[%clk 00:02:13]} 11. Nd2 {[%emt 00:00:03] [%clk 00:02:08]} O-O {[%emt 00:00:15]
[%clk 00:02:00]} 12. O-O {[%emt 00:00:01] [%clk 00:02:08]} Rc8 {[%clk 00:02:02]}
13. Qb3 {[%emt 00:00:14] [%clk 00:01:58]} Nc5 {[%clk 00:02:02]} 14. Bxc5 {[%emt
00:00:01] [%clk 00:01:58]} Rxc5 {[%emt 00:00:04] [%clk 00:02:01]} 15. Bc4 {[%emt
00:00:25] [%clk 00:01:36]} Qc7 {[%emt 00:00:05] [%clk 00:01:57]} 16. Rfe1 {[%emt
00:00:22] [%clk 00:01:16]} Nh5 {[%emt 00:00:35] [%clk 00:01:24]} 17. Rad1 {[%emt
00:00:34] [%clk 00:00:44]} Nf4 {[%emt 00:00:02] [%clk 00:01:24]} 18. Ne2 {[%emt
00:00:15] [%clk 00:00:31]} b5 {[%emt 00:00:32] [%clk 00:00:54]} 19. axb5 {[%emt
00:00:03] [%clk 00:00:30]} axb5 {[%emt 00:00:01] [%clk 00:00:55]} 20. Bxb5
{[%emt 00:00:08] [%clk 00:00:24]} Rb8 {[%emt 00:00:21] [%clk 00:00:35]} 21. c4
{[%emt 00:00:06] [%clk 00:00:21]} Nxe2+ {[%emt 00:00:04] [%clk 00:00:32]} 22.
Rxe2 {[%emt 00:00:02] [%clk 00:00:22]} Bc6 {[%emt 00:00:01] [%clk 00:00:33]} 23.
Qf3 {[%emt 00:00:10] [%clk 00:00:13]} Bxb5 {[%emt 00:00:06] [%clk 00:00:30]} 24.
cxb5 {[%emt 00:00:01] [%clk 00:00:14]} Rcxb5 {[%emt 00:00:08] [%clk 00:00:24]}
25. Nf1 {[%emt 00:00:05] [%clk 00:00:11]} Rxb2 {[%emt 00:00:07] [%clk 00:00:19]}
26. Rxb2 {[%emt 00:00:02] [%clk 00:00:11]} Rxb2 {[%emt 00:00:01] [%clk
00:00:20]} 27. Ne3 {[%clk 00:00:12]} Bg5 {[%emt 00:00:05] [%clk 00:00:17]} 28.
Nd5 {[%emt 00:00:03] [%clk 00:00:12]} Qc2 {[%clk 00:00:18]} 29. g3 {[%emt
00:00:05] [%clk 00:00:09]} g6 {[%emt 00:00:05] [%clk 00:00:14]} 30. h4 {[%emt
00:00:02] [%clk 00:00:10]} Bd8 {[%emt 00:00:03] [%clk 00:00:13]} 31. Kg2 {[%emt
00:00:04] [%clk 00:00:08]} Qe2 {[%emt 00:00:03] [%clk 00:00:12]} 32. Qxe2 {[%emt
00:00:03] [%clk 00:00:07]} Rxe2 {[%emt 00:00:01] [%clk 00:00:13]} 33. Ra1 {[%emt
00:00:02] [%clk 00:00:07]} Kg7 {[%emt 00:00:04] [%clk 00:00:11]} 34. Kf3 {[%emt
00:00:03] [%clk 00:00:06]} Rb2 {[%emt 00:00:02] [%clk 00:00:10]} 35. Ra6 {[%emt
00:00:03] [%clk 00:00:06]} Rb3+ {[%emt 00:00:03] [%clk 00:00:09]} 36. Kg2 {[%emt
00:00:01] [%clk 00:00:07]} Kf8 {[%emt 00:00:07] [%clk 00:00:04]} 37. Rxd6 {[%emt
00:00:03] [%clk 00:00:06]} Be7 {[%clk 00:00:05]} 38. Ra6 {[%emt 00:00:02] [%clk
00:00:06]} Bc5 {[%clk 00:00:06]} 39. Ra2 {[%emt 00:00:03] [%clk 00:00:06]} Bd4
{[%emt 00:00:01] [%clk 00:00:07]} 40. Rc2 {[%emt 00:00:02] [%clk 00:00:06]} Kg7
{[%emt 00:00:02] [%clk 00:00:07]} 41. Kf1 {[%emt 00:00:02] [%clk 00:00:05]} h6
{[%emt 00:00:03] [%clk 00:00:07]} 42. Ke2 {[%emt 00:00:02] [%clk 00:00:06]} Rb7
{[%emt 00:00:02] [%clk 00:00:06]} 43. g4 {[%emt 00:00:02] [%clk 00:00:06]} Rb3
{[%emt 00:00:01] [%clk 00:00:07]} 44. f3 {[%emt 00:00:04] [%clk 00:00:04]} Rb1
{[%emt 00:00:02] [%clk 00:00:07]} 45. g5 {[%emt 00:00:02] [%clk 00:00:04]} Rh1
{[%emt 00:00:02] [%clk 00:00:07]} 46. gxh6+ {[%emt 00:00:02] [%clk 00:00:04]}
Kxh6 {[%emt 00:00:01] [%clk 00:00:08]} 47. Rc7 {[%emt 00:00:01] [%clk 00:00:05]}
Kg7 {[%emt 00:00:01] [%clk 00:00:09]} 48. h5 {[%emt 00:00:03] [%clk 00:00:04]}
Rxh5 {[%emt 00:00:02] [%clk 00:00:09]} 49. Nb4 {[%emt 00:00:02] [%clk 00:00:04]}
Rh2+ {[%emt 00:00:01] [%clk 00:00:10]} 50. Ke1 {[%emt 00:00:01] [%clk 00:00:05]}
Rf2 {[%emt 00:00:04] [%clk 00:00:08]} 51. Nc2 {[%emt 00:00:04] [%clk 00:00:03]}
Rxf3 {[%emt 00:00:01] [%clk 00:00:09]} 52. Ke2 {[%clk 00:00:04]} Rf2+ {[%emt
00:00:01] [%clk 00:00:09]} 53. Kd3 {[%clk 00:00:05]} Rf3+ {[%emt 00:00:01] [%clk
00:00:10]} 54. Ke2 {[%clk 00:00:07]} Rc3 {[%emt 00:00:01] [%clk 00:00:11]} 55.
Rxc3 {[%emt 00:00:03] [%clk 00:00:06]} Bxc3 {[%clk 00:00:12]} 56. Kf3 {[%emt
00:00:01] [%clk 00:00:07]} Kf6 {[%emt 00:00:02] [%clk 00:00:12]} 57. Ne3 {[%emt
00:00:02] [%clk 00:00:07]} Bd4 {[%clk 00:00:13]} 58. Nc4 {[%emt 00:00:03] [%clk
00:00:07]} Kg5 {[%emt 00:00:03] [%clk 00:00:13]} 59. Kg3 {[%emt 00:00:01] [%clk
00:00:07]} f5 {[%emt 00:00:01] [%clk 00:00:14]} 60. Nd6 {[%clk 00:00:09]} Bc5
{[%emt 00:00:03] [%clk 00:00:12]} 61. Nc4 {[%emt 00:00:03] [%clk 00:00:08]} fxe4
{[%emt 00:00:04] [%clk 00:00:10]} 62. Nd2 {[%emt 00:00:04] [%clk 00:00:06]} Kf5
{[%emt 00:00:02] [%clk 00:00:10]} 63. Nc4 {[%emt 00:00:01] [%clk 00:00:07]} e3
{[%emt 00:00:07] [%clk 00:00:05]} 64. Kf3 {[%clk 00:00:08]} e4+ {[%emt 00:00:01]
[%clk 00:00:07]} 65. Ke2 {[%clk 00:00:09]} g5 {[%emt 00:00:02] [%clk 00:00:07]}
0-1

[Site "Europe Echecs"]

[Event "Championnat d'Europe de Blitz"]
[Date "2024.12.09"]
[White "Krallis, Christos"]
[Black "Livaic, Leon"]
[WhiteElo "2383"]
[BlackElo "2560"]
[Round "8.20"]
[Result "0-1"]
[TimeControl "180+2"]

1. e4 {[%emt 00:00:01] [%clk 00:03:01]} d6 {[%emt 00:00:02] [%clk 00:03:03]} 2.
d4 {[%emt 00:00:02] [%clk 00:03:01]} Nf6 {[%emt 00:00:01] [%clk 00:03:04]} 3.
Nc3 {[%emt 00:00:02] [%clk 00:03:01]} e5 {[%emt 00:00:02] [%clk 00:03:05]} 4.
Nf3 {[%emt 00:00:05] [%clk 00:02:57]} Nbd7 {[%emt 00:00:01] [%clk 00:03:06]} 5.
Bc4 {[%emt 00:00:28] [%clk 00:02:31]} Be7 {[%emt 00:00:01] [%clk 00:03:06]} 6.
O-O {[%emt 00:00:06] [%clk 00:02:28]} O-O {[%emt 00:00:02] [%clk 00:03:06]} 7.
a3 {[%emt 00:00:08] [%clk 00:02:22]} c6 {[%emt 00:00:02] [%clk 00:03:07]} 8. Ba2
{[%emt 00:00:03] [%clk 00:02:21]} b5 {[%emt 00:00:15] [%clk 00:02:54]} 9. Re1
{[%emt 00:00:18] [%clk 00:02:04]} a5 {[%emt 00:00:07] [%clk 00:02:49]} 10. d5
{[%emt 00:00:05] [%clk 00:02:02]} Bb7 {[%emt 00:00:02] [%clk 00:02:49]} 11. dxc6
{[%emt 00:00:16] [%clk 00:01:47]} Bxc6 {[%emt 00:00:01] [%clk 00:02:50]} 12. Bg5
{[%emt 00:00:13] [%clk 00:01:37]} Qc7 {[%emt 00:00:23] [%clk 00:02:28]} 13. Nh4
{[%emt 00:00:10] [%clk 00:01:29]} g6 {[%emt 00:00:29] [%clk 00:02:01]} 14. Qd2
{[%emt 00:00:22] [%clk 00:01:09]} b4 {[%emt 00:00:12] [%clk 00:01:51]} 15. Nd5
{[%emt 00:00:15] [%clk 00:00:56]} Bxd5 {[%emt 00:00:16] [%clk 00:01:38]} 16.
exd5 {[%emt 00:00:12] [%clk 00:00:46]} Rfc8 {[%emt 00:00:10] [%clk 00:01:29]}
17. axb4 {[%emt 00:00:11] [%clk 00:00:37]} axb4 {[%emt 00:00:04] [%clk
00:01:27]} 18. Qxb4 {[%emt 00:00:07] [%clk 00:00:32]} Rab8 {[%emt 00:00:32]
[%clk 00:00:58]} 19. Qa3 {[%emt 00:00:04] [%clk 00:00:30]} Ra8 {[%emt 00:00:15]
[%clk 00:00:44]} 20. Qb3 {[%emt 00:00:14] [%clk 00:00:19]} Qxc2 {[%emt 00:00:06]
[%clk 00:00:39]} 21. Qxc2 {[%emt 00:00:14] [%clk 00:00:07]} Rxc2 {[%clk
00:00:41]} 22. Reb1 {[%emt 00:00:04] [%clk 00:00:05]} Nc5 {[%emt 00:00:16] [%clk
00:00:27]} 23. b4 {[%emt 00:00:02] [%clk 00:00:04]} Nce4 {[%emt 00:00:06] [%clk
00:00:23]} 24. Bb3 {[%emt 00:00:03] [%clk 00:00:03]} Rxa1 {[%emt 00:00:02] [%clk
00:00:23]} 25. Rxa1 {[%emt 00:00:01] [%clk 00:00:04]} Rb2 {[%emt 00:00:05] [%clk
00:00:21]} 26. Bxf6 {[%emt 00:00:02] [%clk 00:00:03]} Bxf6 {[%emt 00:00:01]
[%clk 00:00:22]} 27. Bd1 {[%emt 00:00:03]} Bxh4 {[%emt 00:00:01] [%clk
00:00:22]} 28. g3 {[%emt 00:00:02] [%clk 00:00:04]} Bf6 {[%emt 00:00:01] [%clk
00:00:22]} 29. Bf3 {[%emt 00:00:03] [%clk 00:00:04]} Rxb4 {[%emt 00:00:09] [%clk
00:00:15]} 30. Ra6 {[%emt 00:00:01] [%clk 00:00:05]} Kg7 {[%emt 00:00:05] [%clk
00:00:12]} 31. h4 {[%emt 00:00:01] [%clk 00:00:05]} h5 {[%clk 00:00:13]} 32. Kg2
{[%emt 00:00:03] [%clk 00:00:05]} Nd2 {[%emt 00:00:02] [%clk 00:00:13]} 33. Be2
{[%emt 00:00:02] [%clk 00:00:04]} Ne4 {[%emt 00:00:07] [%clk 00:00:09]} 34. Bf3
{[%emt 00:00:02] [%clk 00:00:04]} Rd4 {[%clk 00:00:10]} 35. Rc6 {[%emt 00:00:03]
[%clk 00:00:04]} Nd2 {[%emt 00:00:02] [%clk 00:00:10]} 36. Rxd6 {[%emt 00:00:02]
[%clk 00:00:04]} Nxf3 {[%emt 00:00:02] [%clk 00:00:10]} 37. Kxf3 {[%emt
00:00:01] [%clk 00:00:04]} Be7 {[%emt 00:00:04] [%clk 00:00:08]} 38. Rd7 {[%emt
00:00:02] [%clk 00:00:05]} Kf8 {[%emt 00:00:01] [%clk 00:00:08]} 39. Ke3 {[%emt
00:00:03] [%clk 00:00:04]} Ke8 {[%clk 00:00:09]} 40. Rb7 {[%emt 00:00:02] [%clk
00:00:05]} Rxd5 {[%emt 00:00:02] [%clk 00:00:10]} 41. Ke4 {[%clk 00:00:06]} Rc5
{[%emt 00:00:02] [%clk 00:00:10]} 42. Ra7 {[%emt 00:00:02] [%clk 00:00:06]} f5+
{[%emt 00:00:01] [%clk 00:00:11]}

[Site "Europe Echecs"]

[Event "Championnat d'Europe de Blitz"]
[Date "2024.12.09"]
[White "Gatineau, Yovann"]
[Black "Saric, Ante"]
[WhiteElo "2363"]
[BlackElo "2482"]
[Round "8.21"]
[Result "0-1"]
[TimeControl "180+2"]

1. d4 {[%clk 00:03:03]} Nf6 {[%emt 00:00:01] [%clk 00:03:03]} 2. c4 {[%emt
00:00:01] [%clk 00:03:05]} e6 {[%clk 00:03:05]} 3. Nf3 {[%clk 00:03:06]} d5
{[%clk 00:03:06]} 4. Nc3 {[%emt 00:00:01] [%clk 00:03:07]} Be7 {[%emt 00:00:01]
[%clk 00:03:07]} 5. Bf4 {[%emt 00:00:01] [%clk 00:03:07]} O-O {[%emt 00:00:02]
[%clk 00:03:06]} 6. e3 {[%emt 00:00:01] [%clk 00:03:08]} b6 {[%emt 00:00:08]
[%clk 00:03:00]} 7. Bd3 {[%emt 00:00:02] [%clk 00:03:08]} dxc4 {[%emt 00:00:10]
[%clk 00:02:52]} 8. Bxc4 {[%clk 00:03:09]} Bb7 {[%emt 00:00:02] [%clk 00:02:53]}
9. O-O {[%emt 00:00:06] [%clk 00:03:04]} Nbd7 {[%emt 00:00:09] [%clk 00:02:46]}
10. Qe2 {[%emt 00:00:04] [%clk 00:03:03]} Ne4 {[%emt 00:00:12] [%clk 00:02:36]}
11. Nxe4 {[%emt 00:00:15] [%clk 00:02:50]} Bxe4 {[%emt 00:00:02] [%clk
00:02:36]} 12. Rfd1 {[%emt 00:00:04] [%clk 00:02:48]} Bd6 {[%emt 00:00:27] [%clk
00:02:11]} 13. Bxd6 {[%emt 00:00:21] [%clk 00:02:29]} cxd6 {[%emt 00:00:01]
[%clk 00:02:12]} 14. Rac1 {[%emt 00:00:05] [%clk 00:02:26]} Rc8 {[%emt 00:00:14]
[%clk 00:02:00]} 15. Ba6 {[%emt 00:00:06] [%clk 00:02:22]} Rxc1 {[%emt 00:00:08]
[%clk 00:01:54]} 16. Rxc1 {[%clk 00:02:23]} Nb8 {[%emt 00:00:01] [%clk
00:01:54]} 17. Bd3 {[%emt 00:00:05] [%clk 00:02:20]} Bxf3 {[%emt 00:00:15] [%clk
00:01:41]} 18. Qxf3 {[%emt 00:00:02] [%clk 00:02:21]} Qd7 {[%emt 00:00:02] [%clk
00:01:41]} 19. Qe4 {[%emt 00:00:46] [%clk 00:01:37]} g6 {[%emt 00:00:05] [%clk
00:01:38]} 20. d5 {[%emt 00:00:02] [%clk 00:01:36]} Rc8 {[%emt 00:00:32] [%clk
00:01:08]} 21. Rxc8+ {[%emt 00:00:02] [%clk 00:01:36]} Qxc8 {[%clk 00:01:09]}
22. dxe6 {[%emt 00:00:02] [%clk 00:01:37]} fxe6 {[%emt 00:00:03] [%clk
00:01:09]} 23. h4 {[%emt 00:00:03] [%clk 00:01:35]} d5 {[%emt 00:00:07] [%clk
00:01:04]} 24. Qe5 {[%emt 00:00:07] [%clk 00:01:29]} Nc6 {[%emt 00:00:14] [%clk
00:00:52]} 25. Qd6 {[%emt 00:00:04] [%clk 00:01:28]} Nd8 {[%emt 00:00:09] [%clk
00:00:45]} 26. Bb5 {[%emt 00:00:12] [%clk 00:01:18]} Nf7 {[%emt 00:00:12] [%clk
00:00:34]} 27. Qe7 {[%emt 00:00:21] [%clk 00:00:59]} Qc1+ {[%clk 00:00:35]} 28.
Kh2 {[%emt 00:00:06] [%clk 00:00:55]} Qxb2 {[%emt 00:00:02] [%clk 00:00:36]} 29.
Be8 {[%emt 00:00:07] [%clk 00:00:50]} Qxf2 {[%emt 00:00:01] [%clk 00:00:36]} 30.
Qxe6 {[%emt 00:00:08] [%clk 00:00:45]} Kf8 {[%emt 00:00:16] [%clk 00:00:21]} 31.
Bc6 {[%emt 00:00:03] [%clk 00:00:45]} Qxh4+ {[%emt 00:00:03] [%clk 00:00:20]}
32. Kg1 {[%clk 00:00:46]} Qe1+ {[%emt 00:00:03] [%clk 00:00:19]} 33. Kh2 {[%emt
00:00:01] [%clk 00:00:47]} Qh4+ {[%clk 00:00:20]} 34. Kg1 {[%clk 00:00:49]} Qe7
{[%emt 00:00:06] [%clk 00:00:17]} 35. Qc8+ {[%emt 00:00:16] [%clk 00:00:34]} Kg7
{[%emt 00:00:02] [%clk 00:00:18]} 36. Bxd5 {[%emt 00:00:02] [%clk 00:00:34]}
Qxe3+ {[%emt 00:00:02] [%clk 00:00:18]} 37. Kh1 {[%emt 00:00:02] [%clk
00:00:33]} Qe1+ {[%emt 00:00:04] [%clk 00:00:16]} 38. Kh2 {[%clk 00:00:34]} Qe5+
{[%emt 00:00:01] [%clk 00:00:17]} 0-1

[Site "Europe Echecs"]

[Event "Championnat d'Europe de Blitz"]
[Date "2024.12.09"]
[White "Subelj, Jan"]
[Black "Popovic, Milos T"]
[WhiteElo "2526"]
[BlackElo "2334"]
[Round "8.22"]
[Result "1-0"]
[TimeControl "180+2"]

1. Nf3 {[%clk 00:03:03]} Nf6 {[%emt 00:00:02] [%clk 00:03:03]} 2. c4 {[%emt
00:00:01] [%clk 00:03:04]} e6 {[%emt 00:00:02] [%clk 00:03:04]} 3. g3 {[%emt
00:00:01] [%clk 00:03:05]} b6 {[%emt 00:00:01] [%clk 00:03:05]} 4. Bg2 {[%emt
00:00:02] [%clk 00:03:05]} Bb7 {[%emt 00:00:01] [%clk 00:03:05]} 5. O-O {[%emt
00:00:02] [%clk 00:03:05]} c5 {[%emt 00:00:01] [%clk 00:03:06]} 6. d4 {[%emt
00:00:03] [%clk 00:03:04]} cxd4 {[%emt 00:00:01] [%clk 00:03:06]} 7. Qxd4 {[%clk
00:03:05]} Nc6 {[%emt 00:00:14] [%clk 00:02:55]} 8. Qc3 {[%emt 00:00:09] [%clk
00:02:57]} Bb4 {[%emt 00:00:03] [%clk 00:02:55]} 9. Qb3 {[%emt 00:00:01] [%clk
00:02:58]} O-O {[%emt 00:00:03] [%clk 00:02:54]} 10. Rd1 {[%emt 00:00:05] [%clk
00:02:55]} Rc8 {[%emt 00:00:07] [%clk 00:02:50]} 11. Bg5 {[%emt 00:00:03] [%clk
00:02:54]} Be7 {[%emt 00:00:01] [%clk 00:02:50]} 12. Qe3 {[%emt 00:00:39] [%clk
00:02:17]} d5 {[%emt 00:00:29] [%clk 00:02:22]} 13. Nc3 {[%emt 00:00:18] [%clk
00:02:01]} Nb4 {[%emt 00:00:15] [%clk 00:02:10]} 14. cxd5 {[%emt 00:00:01] [%clk
00:02:02]} Nfxd5 {[%emt 00:00:39] [%clk 00:01:33]} 15. Nxd5 {[%clk 00:02:03]}
Nxd5 {[%emt 00:00:05] [%clk 00:01:31]} 16. Qd2 {[%emt 00:00:02] [%clk 00:02:03]}
Bxg5 {[%emt 00:00:07] [%clk 00:01:25]} 17. Nxg5 {[%emt 00:00:01] [%clk
00:02:03]} h6 {[%emt 00:00:03] [%clk 00:01:24]} 18. Ne4 {[%emt 00:00:01] [%clk
00:02:04]} Qe7 {[%emt 00:00:06] [%clk 00:01:21]} 19. Rac1 {[%emt 00:00:03] [%clk
00:02:04]} Rxc1 {[%emt 00:00:03] [%clk 00:01:20]} 20. Rxc1 {[%emt 00:00:01]
[%clk 00:02:04]} Rd8 {[%emt 00:00:01] [%clk 00:01:21]} 21. Qe1 {[%emt 00:00:17]
[%clk 00:01:49]} Qb4 {[%emt 00:00:07] [%clk 00:01:17]} 22. Qxb4 {[%emt 00:00:39]
[%clk 00:01:12]} Nxb4 {[%clk 00:01:17]} 23. a3 {[%emt 00:00:01] [%clk 00:01:13]}
Nc6 {[%emt 00:00:05] [%clk 00:01:14]} 24. e3 {[%emt 00:00:05] [%clk 00:01:10]}
Ne5 {[%emt 00:00:07] [%clk 00:01:10]} 25. Nf6+ {[%emt 00:00:01] [%clk 00:01:10]}
gxf6 {[%emt 00:00:02] [%clk 00:01:10]} 26. Bxb7 {[%clk 00:01:11]} Rd2 {[%emt
00:00:01] [%clk 00:01:11]} 27. b4 {[%emt 00:00:01] [%clk 00:01:12]} Ng4 {[%emt
00:00:11] [%clk 00:01:02]} 28. Rf1 {[%emt 00:00:08] [%clk 00:01:06]} Ra2 {[%emt
00:00:02] [%clk 00:01:02]} 29. h3 {[%emt 00:00:02] [%clk 00:01:06]} Ne5 {[%clk
00:01:03]} 30. Rd1 {[%clk 00:01:07]} Rxa3 {[%emt 00:00:02] [%clk 00:01:03]} 31.
b5 {[%emt 00:00:01] [%clk 00:01:08]} Rb3 {[%emt 00:00:07] [%clk 00:00:59]} 32.
Rd8+ {[%emt 00:00:05] [%clk 00:01:05]} Kg7 {[%clk 00:01:00]} 33. Ba6 {[%clk
00:01:06]} Rb2 {[%emt 00:00:03] [%clk 00:00:59]} 34. g4 {[%emt 00:00:19] [%clk
00:00:49]} Rc2 {[%emt 00:00:28] [%clk 00:00:33]} 35. Kg2 {[%emt 00:00:02] [%clk
00:00:49]} Rc7 {[%emt 00:00:01] [%clk 00:00:34]} 36. Kg3 {[%clk 00:00:50]} Nd7
{[%clk 00:00:35]} 37. f4 {[%emt 00:00:16] [%clk 00:00:36]} Nc5 {[%clk 00:00:36]}
38. Bc8 {[%clk 00:00:37]} Ne4+ {[%emt 00:00:03] [%clk 00:00:35]} 39. Kf3 {[%emt
00:00:02] [%clk 00:00:37]} Nc3 {[%emt 00:00:02] [%clk 00:00:36]} 40. Bd7 {[%emt
00:00:06] [%clk 00:00:32]} Nd5 {[%emt 00:00:05] [%clk 00:00:33]} 41. Bc6 {[%emt
00:00:07] [%clk 00:00:27]} Nc3 {[%emt 00:00:02] [%clk 00:00:33]} 42. Rd6 {[%emt
00:00:04] [%clk 00:00:25]} Kf8 {[%emt 00:00:03] [%clk 00:00:32]} 43. Rd8+ {[%emt
00:00:01] [%clk 00:00:26]} Ke7 {[%emt 00:00:01] [%clk 00:00:33]} 44. Rh8 {[%emt
00:00:03] [%clk 00:00:25]} a5 {[%emt 00:00:03] [%clk 00:00:32]} 45. bxa6 {[%emt
00:00:02] [%clk 00:00:25]} Ra7 {[%emt 00:00:10] [%clk 00:00:24]} 46. Bb7 {[%emt
00:00:02] [%clk 00:00:25]} Nb5 {[%emt 00:00:03] [%clk 00:00:23]} 47. h4 {[%emt
00:00:07] [%clk 00:00:20]} Nd6 {[%emt 00:00:01] [%clk 00:00:24]} 48. Rb8 {[%emt
00:00:01] [%clk 00:00:21]} b5 {[%emt 00:00:02] [%clk 00:00:25]} 49. h5 {[%emt
00:00:04] [%clk 00:00:18]} b4 {[%clk 00:00:26]} 50. g5 {[%emt 00:00:01] [%clk
00:00:19]} fxg5 {[%emt 00:00:01] [%clk 00:00:26]} 51. fxg5 {[%emt 00:00:01]
[%clk 00:00:20]} Nf5 {[%emt 00:00:05] [%clk 00:00:24]} 52. e4 {[%emt 00:00:02]
[%clk 00:00:21]} Nh4+ {[%emt 00:00:02] [%clk 00:00:24]} 53. Kg4 {[%clk
00:00:22]} hxg5 {[%clk 00:00:25]} 54. Kxg5 {[%emt 00:00:06] [%clk 00:00:17]}
Nf3+ {[%emt 00:00:01] [%clk 00:00:27]} 55. Kf4 {[%emt 00:00:02] [%clk 00:00:18]}
Nh4 {[%emt 00:00:06] [%clk 00:00:22]} 56. Kg4 {[%emt 00:00:01] [%clk 00:00:19]}
Ng2 {[%emt 00:00:05] [%clk 00:00:19]} 57. h6 {[%emt 00:00:01] [%clk 00:00:20]}
Ne3+ {[%clk 00:00:20]} 58. Kf4 {[%emt 00:00:03] [%clk 00:00:19]} 1-0

[Site "Europe Echecs"]